[Event "Early-Titled-Tuesday-Blitz-February-20-2024"]
[Site "Chess.com"]
[Date "2024.02.20"]
[Round "7"]
[White "Doublekk14"]
[Black "Capablanca_Oujda_2021"]
[Result "0-1"]
[WhiteElo "2306"]
[BlackElo "2531"]
[TimeControl "180+1"]
[EndTime "9:20:55 PST"]
[Termination "Capablanca_Oujda_2021 won on time"]

1. c4 {[%clk 0:03:00.9]} 1... g6 {[%clk 0:02:57.4]} 2. Nc3 {[%clk 0:02:58.4]}
2... Bg7 {[%clk 0:02:57]} 3. Nf3 {[%clk 0:02:58.9]} 3... e6 {[%clk 0:02:55.5]}
4. e3 {[%clk 0:02:56.8]} 4... Ne7 {[%clk 0:02:56]} 5. d4 {[%clk 0:02:56.1]} 5...
O-O {[%clk 0:02:56.7]} 6. Be2 {[%clk 0:02:56.2]} 6... d5 {[%clk 0:02:56.6]} 7.
b3 {[%clk 0:02:54.1]} 7... b6 {[%clk 0:02:55]} 8. Bb2 {[%clk 0:02:53.7]} 8...
Bb7 {[%clk 0:02:55.4]} 9. O-O {[%clk 0:02:54]} 9... Nd7 {[%clk 0:02:55.6]} 10.
cxd5 {[%clk 0:02:48]} 10... Nxd5 {[%clk 0:02:54.7]} 11. Nxd5 {[%clk 0:02:46.9]}
11... Bxd5 {[%clk 0:02:55.6]} 12. Rc1 {[%clk 0:02:39.5]} 12... c5 {[%clk
0:02:45.2]} 13. Ba3 {[%clk 0:02:39]} 13... Re8 {[%clk 0:02:39.2]} 14. Bb5 {[%clk
0:02:36.1]} 14... cxd4 {[%clk 0:01:54.7]} 15. Nxd4 {[%clk 0:02:34]} 15... Qg5
{[%clk 0:01:05.3]} 16. g3 {[%clk 0:02:08.6]} 16... Red8 {[%clk 0:00:52.2]} 17.
f4 {[%clk 0:01:29.7]} 17... Qf6 {[%clk 0:00:46.7]} 18. Nc6 {[%clk 0:01:17.8]}
18... Bxc6 {[%clk 0:00:39.8]} 19. Bxc6 {[%clk 0:01:17.6]} 19... Nc5 {[%clk
0:00:39.7]} 20. Bxa8 {[%clk 0:01:06.1]} 20... Rxd1 {[%clk 0:00:31.3]} 21. Rfxd1
{[%clk 0:01:06.3]} 21... h5 {[%clk 0:00:29.4]} 22. h4 {[%clk 0:00:54.7]} 22...
a5 {[%clk 0:00:22.9]} 23. Rd2 {[%clk 0:00:48.4]} 23... Qf5 {[%clk 0:00:20.6]}
24. Bxc5 {[%clk 0:00:32.2]} 24... bxc5 {[%clk 0:00:20.3]} 25. Bf3 {[%clk
0:00:22.8]} 25... Qh3 {[%clk 0:00:19.7]} 26. Rg2 {[%clk 0:00:20]} 26... Bb2
{[%clk 0:00:17.3]} 27. Rcc2 {[%clk 0:00:13.6]} 27... Ba3 {[%clk 0:00:16.2]} 28.
e4 {[%clk 0:00:13.3]} 28... Kg7 {[%clk 0:00:13.1]} 29. Kf2 {[%clk 0:00:09.8]}
29... e5 {[%clk 0:00:12.8]} 30. fxe5 {[%clk 0:00:04.4]} 30... Qe6 {[%clk
0:00:12.4]} 31. Rd2 {[%clk 0:00:02.8]} 31... Qxe5 {[%clk 0:00:12.8]} 32. Rg1
{[%clk 0:00:02.9]} 32... Bb2 {[%clk 0:00:12.5]} 33. Re1 {[%clk 0:00:02.6]} 33...
Bd4+ {[%clk 0:00:13.1]} 34. Kg2 {[%clk 0:00:02.9]} 34... Bc3 {[%clk 0:00:12]}
35. Rde2 {[%clk 0:00:02.6]} 35... Bxe1 {[%clk 0:00:12]} 36. Rxe1 {[%clk
0:00:03.4]} 36... f5 {[%clk 0:00:11.3]} 37. Re2 {[%clk 0:00:04.3]} 37... fxe4
{[%clk 0:00:11.3]} 38. Bxe4 {[%clk 0:00:04.7]} 38... Qd4 {[%clk 0:00:11.8]} 39.
Bf3 {[%clk 0:00:04.8]} 39... c4 {[%clk 0:00:11.7]} 40. bxc4 {[%clk 0:00:04.8]}
40... Qxc4 {[%clk 0:00:12.6]} 41. Be4 {[%clk 0:00:04.9]} 41... Qd4 {[%clk
0:00:12.1]} 42. Bf3 {[%clk 0:00:05]} 42... Qc4 {[%clk 0:00:12]} 43. Rf2 {[%clk
0:00:05.4]} 43... a4 {[%clk 0:00:11.9]} 44. Re2 {[%clk 0:00:05.6]} 44... a3
{[%clk 0:00:11.8]} 45. Rf2 {[%clk 0:00:05.8]} 45... Qc3 {[%clk 0:00:11.3]} 46.
Re2 {[%clk 0:00:05.9]} 46... Kh6 {[%clk 0:00:11.6]} 47. Rf2 {[%clk 0:00:06]}
47... Qe3 {[%clk 0:00:11.2]} 48. Re2 {[%clk 0:00:05.8]} 48... Qd4 {[%clk
0:00:10.9]} 49. Re4 {[%clk 0:00:05.4]} 49... Qd2+ {[%clk 0:00:10.2]} 50. Re2
{[%clk 0:00:06.3]} 50... Qd4 {[%clk 0:00:09.6]} 51. Rf2 {[%clk 0:00:06.5]} 51...
g5 {[%clk 0:00:08.5]} 52. hxg5+ {[%clk 0:00:06.6]} 52... Kxg5 {[%clk 0:00:09.4]}
53. Re2 {[%clk 0:00:06.5]} 53... Qc3 {[%clk 0:00:08.3]} 54. Rf2 {[%clk
0:00:06.5]} 54... h4 {[%clk 0:00:08.1]} 55. gxh4+ {[%clk 0:00:06.5]} 55... Kxh4
{[%clk 0:00:09]} 56. Re2 {[%clk 0:00:03.4]} 56... Qg7+ {[%clk 0:00:08.9]} 57.
Kf2 {[%clk 0:00:03.7]} 57... Qd4+ {[%clk 0:00:08.8]} 58. Kg2 {[%clk 0:00:03.9]}
58... Qg7+ {[%clk 0:00:07.2]} 59. Kf2 {[%clk 0:00:04]} 59... Qg3+ {[%clk
0:00:06.4]} 60. Ke3 {[%clk 0:00:04.3]} 60... Qg1+ {[%clk 0:00:06]} 61. Kd3
{[%clk 0:00:03.3]} 61... Qb1+ {[%clk 0:00:04.2]} 62. Ke3 {[%clk 0:00:03.1]}
62... Qb2 {[%clk 0:00:03.1]} 0-1

[Event "Early-Titled-Tuesday-Blitz-February-20-2024"]
[Site "Chess.com"]
[Date "2024.02.20"]
[Round "7"]
[White "Ural_bogatyr"]
[Black "ValentunHulka"]
[Result "1-0"]
[WhiteElo "2607"]
[BlackElo "2761"]
[TimeControl "180+1"]
[EndTime "9:21:01 PST"]
[Termination "Ural_bogatyr won by resignation"]

1. d4 {[%clk 0:02:55.8]} 1... d5 {[%clk 0:03:00.1]} 2. Nc3 {[%clk 0:02:55.1]}
2... Nf6 {[%clk 0:02:58.8]} 3. Bf4 {[%clk 0:02:53]} 3... e6 {[%clk 0:02:55.6]}
4. Nb5 {[%clk 0:02:50]} 4... Bb4+ {[%clk 0:02:54.1]} 5. c3 {[%clk 0:02:49]} 5...
Ba5 {[%clk 0:02:54.6]} 6. a4 {[%clk 0:02:48.3]} 6... a6 {[%clk 0:02:54.6]} 7. b4
{[%clk 0:02:47.3]} 7... Nc6 {[%clk 0:02:55]} 8. Na3 {[%clk 0:02:41]} 8... Bb6
{[%clk 0:02:50.2]} 9. a5 {[%clk 0:02:40.3]} 9... Ba7 {[%clk 0:02:48.4]} 10. Nf3
{[%clk 0:02:37]} 10... Ne4 {[%clk 0:02:47.6]} 11. Qc2 {[%clk 0:02:27.7]} 11...
O-O {[%clk 0:02:46.4]} 12. e3 {[%clk 0:02:26.2]} 12... f6 {[%clk 0:02:34]} 13.
Bd3 {[%clk 0:02:24.4]} 13... e5 {[%clk 0:02:22.1]} 14. dxe5 {[%clk 0:02:07.6]}
14... fxe5 {[%clk 0:02:20.9]} 15. Bxe4 {[%clk 0:02:07.9]} 15... dxe4 {[%clk
0:01:56.5]} 16. Nxe5 {[%clk 0:02:07.1]} 16... Nxe5 {[%clk 0:01:47.7]} 17. Bxe5
{[%clk 0:02:08]} 17... Bf5 {[%clk 0:01:47]} 18. Rd1 {[%clk 0:01:42.3]} 18... Qg5
{[%clk 0:01:43.1]} 19. Bg3 {[%clk 0:01:40.4]} 19... Rad8 {[%clk 0:01:36.6]} 20.
O-O {[%clk 0:01:37.1]} 20... Rd3 {[%clk 0:01:36.4]} 21. Nc4 {[%clk 0:01:30.6]}
21... Rfd8 {[%clk 0:01:15.8]} 22. Ne5 {[%clk 0:01:29.1]} 22... R3d5 {[%clk
0:00:43]} 23. c4 {[%clk 0:01:03.6]} 23... R5d6 {[%clk 0:00:34.2]} 24. c5 {[%clk
0:00:53.6]} 24... Rd5 {[%clk 0:00:34.6]} 25. c6 {[%clk 0:00:51]} 25... b5 {[%clk
0:00:35.2]} 26. axb6 {[%clk 0:00:42.8]} 26... Bxb6 {[%clk 0:00:35.1]} 27. Qc4
{[%clk 0:00:41.8]} 27... Be6 {[%clk 0:00:33.7]} 28. Rxd5 {[%clk 0:00:36.5]}
28... Bxd5 {[%clk 0:00:32.9]} 29. Qxa6 {[%clk 0:00:33.7]} 29... h5 {[%clk
0:00:23.3]} 30. h4 {[%clk 0:00:32.8]} 30... Qf6 {[%clk 0:00:22.1]} 31. Nd7
{[%clk 0:00:31.2]} 31... Qxc6 {[%clk 0:00:18.3]} 32. Nxb6 {[%clk 0:00:27.5]}
32... cxb6 {[%clk 0:00:19.2]} 33. Be5 {[%clk 0:00:13]} 33... Ra8 {[%clk
0:00:17]} 34. Qe2 {[%clk 0:00:11.9]} 34... Bc4 {[%clk 0:00:17.6]} 35. Qc2 {[%clk
0:00:11.7]} 35... Qd5 {[%clk 0:00:18.3]} 36. Rd1 {[%clk 0:00:09.7]} 36... Bd3
{[%clk 0:00:12]} 37. Qc7 {[%clk 0:00:09.6]} 37... Qf7 {[%clk 0:00:08.7]} 38.
Qxb6 {[%clk 0:00:09.1]} 38... Ra2 {[%clk 0:00:08.7]} 39. Bg3 {[%clk 0:00:09.1]}
39... Rb2 {[%clk 0:00:07]} 40. Qd4 {[%clk 0:00:07.7]} 40... Qb3 {[%clk 0:00:06]}
41. Rc1 {[%clk 0:00:06.6]} 41... Qxb4 {[%clk 0:00:03.4]} 42. Rc8+ {[%clk
0:00:05.7]} 42... Kh7 {[%clk 0:00:04.1]} 43. Be5 {[%clk 0:00:02.7]} 43... Rb1+
{[%clk 0:00:03.9]} 44. Kh2 {[%clk 0:00:02.6]} 44... Qxd4 {[%clk 0:00:04.8]} 45.
Bxd4 {[%clk 0:00:02.4]} 45... Rd1 {[%clk 0:00:05.7]} 46. Rc7 {[%clk 0:00:02.1]}
46... Kg8 {[%clk 0:00:06]} 47. Rxg7+ {[%clk 0:00:02.4]} 47... Kf8 {[%clk
0:00:06.9]} 48. Rg5 {[%clk 0:00:03.3]} 48... Rd2 {[%clk 0:00:07.8]} 49. Kg3
{[%clk 0:00:03.9]} 49... Be2 {[%clk 0:00:07.6]} 50. Rf5+ {[%clk 0:00:04.5]}
50... Kg8 {[%clk 0:00:07.6]} 51. Re5 {[%clk 0:00:05.1]} 51... Bd3 {[%clk
0:00:07.5]} 52. Rxh5 {[%clk 0:00:04.8]} 52... Ra2 {[%clk 0:00:08.4]} 53. Rg5+
{[%clk 0:00:05.3]} 53... Kf7 {[%clk 0:00:08.8]} 54. h5 {[%clk 0:00:05.1]} 54...
Ra6 {[%clk 0:00:09.7]} 55. Rg7+ {[%clk 0:00:04.5]} 55... Kf8 {[%clk 0:00:10.3]}
56. Rg5 {[%clk 0:00:03.9]} 56... Rh6 {[%clk 0:00:10.5]} 57. Kf4 {[%clk
0:00:03.8]} 57... Rh7 {[%clk 0:00:10.3]} 58. g4 {[%clk 0:00:03.9]} 58... Kf7
{[%clk 0:00:11.2]} 59. Rf5+ {[%clk 0:00:03.9]} 59... Ke6 {[%clk 0:00:11.5]} 60.
Rf6+ {[%clk 0:00:03.8]} 60... Ke7 {[%clk 0:00:11.8]} 61. Rb6 {[%clk 0:00:03.5]}
61... Be2 {[%clk 0:00:12.4]} 62. Rb7+ {[%clk 0:00:03.5]} 62... Ke6 {[%clk
0:00:13.3]} 63. Rxh7 {[%clk 0:00:04.4]} 63... Bxg4 {[%clk 0:00:14]} 64. Rh6+
{[%clk 0:00:05]} 64... Kd5 {[%clk 0:00:14.6]} 65. Kxg4 {[%clk 0:00:05.3]} 65...
Kc4 {[%clk 0:00:15.5]} 66. Rf6 {[%clk 0:00:05.9]} 66... Kd3 {[%clk 0:00:16.4]}
67. Rf4 {[%clk 0:00:06.8]} 1-0

[Event "Early-Titled-Tuesday-Blitz-February-20-2024"]
[Site "Chess.com"]
[Date "2024.02.20"]
[Round "7"]
[White "LeninGuerra"]
[Black "NastyaHn"]
[Result "1-0"]
[WhiteElo "2566"]
[BlackElo "2431"]
[TimeControl "180+1"]
[EndTime "9:21:01 PST"]
[Termination "LeninGuerra won by resignation"]

1. e4 {[%clk 0:02:54.4]} 1... e6 {[%clk 0:02:58.4]} 2. d4 {[%clk 0:02:54]} 2...
d5 {[%clk 0:02:56]} 3. Nd2 {[%clk 0:02:52.9]} 3... c5 {[%clk 0:02:53.7]} 4. exd5
{[%clk 0:02:52.6]} 4... Qxd5 {[%clk 0:02:51.2]} 5. Ngf3 {[%clk 0:02:52.8]} 5...
cxd4 {[%clk 0:02:50.9]} 6. Bc4 {[%clk 0:02:52.8]} 6... Qd7 {[%clk 0:02:50.7]} 7.
Nb3 {[%clk 0:02:51.8]} 7... Nc6 {[%clk 0:02:51]} 8. Qe2 {[%clk 0:02:44.8]} 8...
a6 {[%clk 0:02:46.3]} 9. Bg5 {[%clk 0:02:38.2]} 9... Bb4+ {[%clk 0:02:38.6]} 10.
c3 {[%clk 0:02:23.2]} 10... dxc3 {[%clk 0:02:33.6]} 11. O-O {[%clk 0:02:23]}
11... Be7 {[%clk 0:02:19]} 12. Rad1 {[%clk 0:02:18.8]} 12... Qc7 {[%clk
0:02:19.1]} 13. bxc3 {[%clk 0:02:09.8]} 13... h6 {[%clk 0:02:16.9]} 14. Bh4
{[%clk 0:02:05.1]} 14... Bxh4 {[%clk 0:02:02.4]} 15. Nxh4 {[%clk 0:02:06]} 15...
Nge7 {[%clk 0:02:02.4]} 16. Bd3 {[%clk 0:01:58.1]} 16... O-O {[%clk 0:01:47.2]}
17. Qh5 {[%clk 0:01:57.8]} 17... Qe5 {[%clk 0:01:39.5]} 18. Qf3 {[%clk
0:01:54.6]} 18... Qf6 {[%clk 0:01:27.9]} 19. Qxf6 {[%clk 0:01:48.1]} 19... gxf6
{[%clk 0:01:27.5]} 20. Nc5 {[%clk 0:01:48.6]} 20... f5 {[%clk 0:01:13.2]} 21.
Rb1 {[%clk 0:01:44.2]} 21... Kg7 {[%clk 0:00:29.6]} 22. Nxb7 {[%clk 0:01:36.2]}
22... Bxb7 {[%clk 0:00:29.1]} 23. Rxb7 {[%clk 0:01:36.7]} 23... Nd5 {[%clk
0:00:29.1]} 24. Bc4 {[%clk 0:01:19.9]} 24... Nf4 {[%clk 0:00:19.2]} 25. g3
{[%clk 0:01:12.6]} 25... Na5 {[%clk 0:00:19]} 26. Rb4 {[%clk 0:01:08.5]} 26...
Nxc4 {[%clk 0:00:18.6]} 27. Rxc4 {[%clk 0:01:09]} 27... Nd5 {[%clk 0:00:17.9]}
28. Rd1 {[%clk 0:01:07]} 28... Rfc8 {[%clk 0:00:17.9]} 29. Rxc8 {[%clk
0:01:06.6]} 29... Rxc8 {[%clk 0:00:17.9]} 30. Nxf5+ {[%clk 0:01:06.7]} 30...
exf5 {[%clk 0:00:14.2]} 31. Rxd5 {[%clk 0:01:05.6]} 31... Rxc3 {[%clk
0:00:14.5]} 32. Ra5 {[%clk 0:01:04.7]} 32... Rc6 {[%clk 0:00:14.1]} 33. Rxf5
{[%clk 0:01:04.3]} 33... Kg6 {[%clk 0:00:12]} 34. Ra5 {[%clk 0:01:04.4]} 34...
Rd6 {[%clk 0:00:12.2]} 35. Kg2 {[%clk 0:01:04.6]} 35... Re6 {[%clk 0:00:12.5]}
36. h4 {[%clk 0:01:04.1]} 36... h5 {[%clk 0:00:12.4]} 37. f3 {[%clk 0:01:03.7]}
37... Rb6 {[%clk 0:00:11.2]} 38. g4 {[%clk 0:01:02.9]} 38... hxg4 {[%clk
0:00:11.3]} 39. fxg4 {[%clk 0:01:03.4]} 39... Kg7 {[%clk 0:00:11.5]} 40. Kg3
{[%clk 0:01:02.6]} 40... Rd6 {[%clk 0:00:11.7]} 41. h5 {[%clk 0:00:59.2]} 41...
Rd3+ {[%clk 0:00:08.3]} 42. Kh4 {[%clk 0:00:58.7]} 42... Rd6 {[%clk 0:00:06.7]}
43. Kg5 {[%clk 0:00:58.7]} 43... Re6 {[%clk 0:00:04.5]} 44. Kf5 {[%clk
0:00:57.7]} 44... Rf6+ {[%clk 0:00:04.3]} 45. Kg5 {[%clk 0:00:46.1]} 45... Rd6
{[%clk 0:00:03.7]} 46. a4 {[%clk 0:00:45.9]} 46... Re6 {[%clk 0:00:04]} 47. Rd5
{[%clk 0:00:42]} 47... Rb6 {[%clk 0:00:03.7]} 48. a5 {[%clk 0:00:41.6]} 48...
Rc6 {[%clk 0:00:03.6]} 49. Kh4 {[%clk 0:00:38.2]} 49... Re6 {[%clk 0:00:03.3]}
50. Rc5 {[%clk 0:00:36.4]} 50... Rd6 {[%clk 0:00:03.3]} 51. g5 {[%clk 0:00:34]}
51... Rd4+ {[%clk 0:00:03.4]} 52. Kg3 {[%clk 0:00:34.1]} 52... Ra4 {[%clk
0:00:03.2]} 53. Kf3 {[%clk 0:00:29.8]} 53... Ra3+ {[%clk 0:00:02.4]} 54. Kf4
{[%clk 0:00:29.5]} 54... Ra4+ {[%clk 0:00:03.1]} 55. Kf5 {[%clk 0:00:29.6]}
55... Rb4 {[%clk 0:00:03.4]} 56. g6 {[%clk 0:00:24.2]} 56... fxg6+ {[%clk
0:00:03.3]} 57. hxg6 {[%clk 0:00:24.8]} 57... Rb1 {[%clk 0:00:02.8]} 58. Rc7+
{[%clk 0:00:24.6]} 58... Kg8 {[%clk 0:00:03.2]} 59. Ra7 {[%clk 0:00:21.1]} 59...
Rf1+ {[%clk 0:00:03.2]} 60. Ke4 {[%clk 0:00:21]} 60... Rf6 {[%clk 0:00:02.7]}
61. g7 {[%clk 0:00:18.8]} 61... Rh6 {[%clk 0:00:01.9]} 62. Kd4 {[%clk
0:00:17.6]} 62... Rh4+ {[%clk 0:00:01.3]} 63. Kc5 {[%clk 0:00:17.7]} 63... Rh5+
{[%clk 0:00:01.4]} 64. Kb6 {[%clk 0:00:18]} 64... Rh6+ {[%clk 0:00:02]} 65. Kb7
{[%clk 0:00:14]} 65... Kxg7 {[%clk 0:00:02.4]} 66. Rxa6 {[%clk 0:00:14.5]} 66...
Rh1 {[%clk 0:00:02.9]} 67. Rb6 {[%clk 0:00:14.7]} 67... Kf7 {[%clk 0:00:02.7]}
68. a6 {[%clk 0:00:15.1]} 68... Ke7 {[%clk 0:00:03.2]} 69. a7 {[%clk 0:00:15.7]}
1-0

[Event "Early-Titled-Tuesday-Blitz-February-20-2024"]
[Site "Chess.com"]
[Date "2024.02.20"]
[Round "7"]
[White "AlexTruskavetsky"]
[Black "Grandelicious"]
[Result "0-1"]
[WhiteElo "2726"]
[BlackElo "2897"]
[TimeControl "180+1"]
[EndTime "9:21:03 PST"]
[Termination "Grandelicious won by checkmate"]

1. d4 {[%clk 0:03:00.9]} 1... Nf6 {[%clk 0:02:59.9]} 2. c4 {[%clk 0:02:58.8]}
2... d6 {[%clk 0:03:00.4]} 3. Nc3 {[%clk 0:02:57.8]} 3... g6 {[%clk 0:03:01.1]}
4. e4 {[%clk 0:02:58]} 4... Bg7 {[%clk 0:03:01.8]} 5. f4 {[%clk 0:02:58.6]} 5...
O-O {[%clk 0:02:54.4]} 6. Nf3 {[%clk 0:02:58.9]} 6... Bg4 {[%clk 0:02:54.9]} 7.
Be3 {[%clk 0:02:43.2]} 7... c5 {[%clk 0:02:31.6]} 8. d5 {[%clk 0:02:38.9]} 8...
e6 {[%clk 0:02:28.1]} 9. dxe6 {[%clk 0:02:29.9]} 9... Bxe6 {[%clk 0:02:26.6]}
10. Be2 {[%clk 0:02:28.4]} 10... Ng4 {[%clk 0:02:26.6]} 11. Bd2 {[%clk 0:02:26]}
11... Nc6 {[%clk 0:02:23.2]} 12. h3 {[%clk 0:02:22.1]} 12... Nf6 {[%clk
0:02:18.8]} 13. O-O {[%clk 0:02:22]} 13... Re8 {[%clk 0:02:18.9]} 14. Bd3 {[%clk
0:02:16.3]} 14... Nb4 {[%clk 0:02:18.2]} 15. Be2 {[%clk 0:02:16.5]} 15... Nh5
{[%clk 0:02:05.8]} 16. a3 {[%clk 0:02:04.6]} 16... Nc6 {[%clk 0:02:05.8]} 17.
Be3 {[%clk 0:01:45.7]} 17... Ng3 {[%clk 0:02:03.9]} 18. Re1 {[%clk 0:01:45.9]}
18... Bxc3 {[%clk 0:01:55.6]} 19. bxc3 {[%clk 0:01:46.8]} 19... Nxe4 {[%clk
0:01:56.3]} 20. Bd3 {[%clk 0:01:35.6]} 20... f5 {[%clk 0:01:56.1]} 21. Qc2
{[%clk 0:01:26.4]} 21... Bf7 {[%clk 0:01:52.8]} 22. Bxe4 {[%clk 0:01:23.8]}
22... Rxe4 {[%clk 0:01:52.7]} 23. Ng5 {[%clk 0:01:20.7]} 23... Re8 {[%clk
0:01:51.7]} 24. Bf2 {[%clk 0:01:16]} 24... Qf6 {[%clk 0:01:48.9]} 25. Qd3 {[%clk
0:01:10.5]} 25... h6 {[%clk 0:01:43.4]} 26. Nxf7 {[%clk 0:01:10.5]} 26... Kxf7
{[%clk 0:01:43.5]} 27. Reb1 {[%clk 0:01:08.4]} 27... Re7 {[%clk 0:01:38.6]} 28.
Rd1 {[%clk 0:01:06.9]} 28... Rd8 {[%clk 0:01:33.7]} 29. Rab1 {[%clk 0:01:06]}
29... Rdd7 {[%clk 0:01:33.5]} 30. Rd2 {[%clk 0:00:55]} 30... Re4 {[%clk
0:01:30]} 31. Bxc5 {[%clk 0:00:52.3]} 31... Na5 {[%clk 0:01:21.7]} 32. Bd4
{[%clk 0:00:49.1]} 32... Qe6 {[%clk 0:01:19.6]} 33. Rb4 {[%clk 0:00:22.1]} 33...
b6 {[%clk 0:01:13.7]} 34. Rf2 {[%clk 0:00:17.3]} 34... Rc7 {[%clk 0:01:11.4]}
35. Rb1 {[%clk 0:00:15]} 35... Nxc4 {[%clk 0:01:11.2]} 36. a4 {[%clk 0:00:15.6]}
36... Re1+ {[%clk 0:01:08.6]} 37. Rxe1 {[%clk 0:00:15.3]} 37... Qxe1+ {[%clk
0:01:09.5]} 38. Kh2 {[%clk 0:00:16]} 38... Qe4 {[%clk 0:01:09.9]} 39. Qxe4
{[%clk 0:00:15.7]} 39... fxe4 {[%clk 0:01:10.2]} 40. f5 {[%clk 0:00:16.5]} 40...
g5 {[%clk 0:01:10.8]} 41. Re2 {[%clk 0:00:16.6]} 41... d5 {[%clk 0:01:11]} 42.
g4 {[%clk 0:00:17]} 42... Na5 {[%clk 0:01:00.1]} 43. h4 {[%clk 0:00:16.7]} 43...
Nc6 {[%clk 0:00:59.7]} 44. Be3 {[%clk 0:00:15]} 44... Ne5 {[%clk 0:00:58.2]} 45.
hxg5 {[%clk 0:00:15]} 45... hxg5 {[%clk 0:00:57.5]} 46. Bxg5 {[%clk 0:00:14.4]}
46... Rxc3 {[%clk 0:00:45.8]} 47. Kg2 {[%clk 0:00:09.8]} 47... Nxg4 {[%clk
0:00:41.6]} 48. Rd2 {[%clk 0:00:10.4]} 48... Nf6 {[%clk 0:00:30.1]} 49. Bxf6
{[%clk 0:00:10.6]} 49... Kxf6 {[%clk 0:00:30.7]} 50. Rxd5 {[%clk 0:00:11.5]}
50... Ra3 {[%clk 0:00:29.3]} 51. Kf2 {[%clk 0:00:08.1]} 51... Rf3+ {[%clk
0:00:26.3]} 52. Ke2 {[%clk 0:00:08.4]} 52... Rxf5 {[%clk 0:00:27.2]} 53. Rd7
{[%clk 0:00:08.4]} 53... Ra5 {[%clk 0:00:27.5]} 54. Rd4 {[%clk 0:00:08.7]} 54...
Ke5 {[%clk 0:00:27.6]} 55. Rb4 {[%clk 0:00:09.4]} 55... Rc5 {[%clk 0:00:23.7]}
56. Ke3 {[%clk 0:00:09]} 56... Rc3+ {[%clk 0:00:24.1]} 57. Kd2 {[%clk
0:00:09.6]} 57... Rd3+ {[%clk 0:00:23.5]} 58. Ke2 {[%clk 0:00:10.2]} 58... Kd5
{[%clk 0:00:22.9]} 59. Rb5+ {[%clk 0:00:10.1]} 59... Kc6 {[%clk 0:00:22.3]} 60.
Re5 {[%clk 0:00:10.4]} 60... Rd4 {[%clk 0:00:22.5]} 61. a5 {[%clk 0:00:10.9]}
61... Ra4 {[%clk 0:00:16.8]} 62. axb6 {[%clk 0:00:10.8]} 62... axb6 {[%clk
0:00:17.7]} 63. Ke3 {[%clk 0:00:11.5]} 63... Kb7 {[%clk 0:00:17.4]} 64. Rxe4
{[%clk 0:00:09.4]} 64... Rxe4+ {[%clk 0:00:17.3]} 65. Kxe4 {[%clk 0:00:10.3]}
65... Ka6 {[%clk 0:00:18]} 66. Kd3 {[%clk 0:00:11]} 66... Kb5 {[%clk 0:00:18.1]}
67. Kc3 {[%clk 0:00:11.4]} 67... Ka4 {[%clk 0:00:18.7]} 68. Kc2 {[%clk
0:00:11.1]} 68... Ka3 {[%clk 0:00:18.6]} 69. Kb1 {[%clk 0:00:11.8]} 69... b5
{[%clk 0:00:17.3]} 70. Ka1 {[%clk 0:00:12.3]} 70... Kb3 {[%clk 0:00:13]} 71. Kb1
{[%clk 0:00:12.9]} 71... b4 {[%clk 0:00:12.9]} 72. Ka1 {[%clk 0:00:13.8]} 72...
Kc2 {[%clk 0:00:13]} 73. Ka2 {[%clk 0:00:14.7]} 73... b3+ {[%clk 0:00:13.7]} 74.
Ka3 {[%clk 0:00:15.6]} 74... b2 {[%clk 0:00:14.3]} 75. Ka4 {[%clk 0:00:16.5]}
75... b1=Q {[%clk 0:00:14.8]} 76. Ka5 {[%clk 0:00:17.4]} 76... Qb7 {[%clk
0:00:11.8]} 77. Ka4 {[%clk 0:00:17.7]} 77... Qb6 {[%clk 0:00:12.4]} 78. Ka3
{[%clk 0:00:18.2]} 78... Qa5# {[%clk 0:00:13.1]} 0-1